[Event "11th LCC Super Blitz 2019"]
[Site "London"]
[Date "2019.12.08"]
[Round "4.7"]
[White "Zulfic, Fedja"]
[Black "Watson, Mikey J"]
[Result "0-1"]
[ECO "D10"]
[WhiteElo "2032"]
[BlackElo "1748"]
[Annotator "NA"]
[PlyCount "106"]
[EventDate "2019.12.08"]
[EventType "swiss"]
[EventCountry "ENG"]
[SourceTitle "playchess.com"]
[Source "ChessBase"]
[SourceQuality "1"]
[TimeControl "180+2"]

1. d4 {[%emt 0:00:00]} d5 {[%emt 0:00:01]} 2. c4 {[%emt 0:00:00]} c6 {[%emt 0:00:01]} 3. cxd5 {[%emt 0:00:02]} cxd5 {[%emt 0:00:01]} 4. Nc3 {[%emt 0:00:02]} Nf6 {[%emt 0:00:01]} 5. Bf4 {[%emt 0:00:01]} a6 {[%emt 0:00:05]} 6. e3 {[%emt 0:00:01]} Nc6 {[%emt 0:00:00]} 7. Bd3 {[%emt 0:00:01]} g6 {[%emt 0:00:02]} 8. h4 {[%emt 0:00:09]} Bg7 {[%emt 0:00:04]} 9. Nge2 {[%emt 0:00:04]} O-O {[%emt 0:00:15]} 10. Ng3 {[%emt 0:00:05]} h5 {[%emt 0:00:07]} 11. O-O {[%emt 0:00:12]} b5 {[%emt 0:00:13]} 12. Rc1 {[%emt 0:00:05]} Bb7 {[%emt 0:00:01]} 13. Bb1 {[%emt 0:00:15]} Rc8 {[%emt 0:00:06]} 14. Bg5 {[%emt 0:00:11]} Qd7 {[%emt 0:00:08]} 15. Qf3 {[%emt 0:00:19]} Rfd8 {[%emt 0:00:26]} 16. Nce2 {[%emt 0:00:27]} Ng4 {[%emt 0:00:11]} 17. Nf4 {[%emt 0:00:13]} e5 {[%emt 0:00:31]} 18. Nxg6 {[%emt 0:00:12]} fxg6 {[%emt 0:00:07]} 19. Bxd8 {[%emt 0:00:01]} Rxd8 {[%emt 0:00:04]} 20. Bxg6 {[%emt 0:00:03]} Rf8 {[%emt 0:00:03]} 21. Qe2 {[%emt 0:00:10]} Qd6 {[%emt 0:00:10]} 22. Bxh5 {[%emt 0:00:02]} Nf6 {[%emt 0:00:02]} 23. Nf5 {[%emt 0:00:11]} Qd7 {[%emt 0:00:07]} 24. Bg6 {[%emt 0:00:11]} Ne7 {[%emt 0:00:19]} 25. Nxe7+ {[%emt 0:00:07]} Qxe7 {[%emt 0:00:02]} 26. Qc2 {[%emt 0:00:19]} exd4 {[%emt 0:00:23]} 27. exd4 {[%emt 0:00:00]} Ne4 {[%emt 0:00:03]} 28. h5 {[%emt 0:00:04]} Bxd4 {[%emt 0:00:06]} 29. Bxe4 {[%emt 0:00:02]} Qxe4 {[%emt 0:00:02]} 30. Qxe4 {[%emt 0:00:09]} dxe4 {[%emt 0:00:01]} 31. Rc7 {[%emt 0:00:02]} Rf7 {[%emt 0:00:04]} 32. Rfc1 {[%emt 0:00:05]} Bxf2+ {[%emt 0:00:12]} 33. Kh1 {[%emt 0:00:03]} Bd5 {[%emt 0:00:01]} 34. Rxf7 {[%emt 0:00:02]} Kxf7 {[%emt 0:00:01]} 35. Rc7+ {[%emt 0:00:03]} Kg8 {[%emt 0:00:03]} 36. Ra7 {[%emt 0:00:02]} Bxa2 {[%emt 0:00:02]} 37. Rxa6 {[%emt 0:00:01]} Bc4 {[%emt 0:00:01]} 38. Ra7 {[%emt 0:00:01]} e3 {[%emt 0:00:02]} 39. Re7 {[%emt 0:00:02]} e2 {[%emt 0:00:01]} 40. g4 {[%emt 0:00:04]} e1=Q+ {[%emt 0:00:02]} 41. Rxe1 {[%emt 0:00:01]} Bxe1 42. Kg2 Kg7 {[%emt 0:00:02]} 43. Kf3 {[%emt 0:00:01]} Bd2 {[%emt 0:00:01]} 44. Ke4 {[%emt 0:00:02]} Kh6 {[%emt 0:00:02]} 45. Kf5 {[%emt 0:00:01]} Bc1 {[%emt 0:00:02]} 46. b4 {[%emt 0:00:04]} Bd3+ {[%emt 0:00:03]} 47. Ke5 {[%emt 0:00:03]} Kg5 {[%emt 0:00:01]} 48. Kd4 {[%emt 0:00:00]} Bc4 {[%emt 0:00:02]} 49. Kc5 {[%emt 0:00:01]} Kxg4 {[%emt 0:00:03]} 50. h6 {[%emt 0:00:01]} Bxh6 {[%emt 0:00:02]} 51. Kb6 {[%emt 0:00:01]} Bd2 {[%emt 0:00:02]} 52. Ka5 {[%emt 0:00:00]} Kf4 {[%emt 0:00:02]} 53. Ka6 {[%emt 0:00:01]} Bxb4 {[%emt 0:00:02]} 0-1

[Event "11th LCC Super Blitz 2019"]
[Site "London"]
[Date "2019.12.08"]
[Round "4.7"]
[White "Van Hoof, Alexander"]
[Black "Joslin, Tim"]
[Result "0-1"]
[ECO "A52"]
[WhiteElo "1968"]
[BlackElo "1822"]
[Annotator "NA"]
[PlyCount "60"]
[EventDate "2019.12.08"]
[EventType "swiss"]
[EventCountry "ENG"]
[SourceTitle "playchess.com"]
[Source "ChessBase"]
[SourceQuality "1"]
[TimeControl "180+2"]

1. d4 {[%emt 0:00:00]} Nf6 {[%emt 0:00:02]} 2. c4 e5 {[%emt 0:00:00]} 3. dxe5 {[%emt 0:00:01]} Ng4 {[%emt 0:00:00]} 4. Nf3 {[%emt 0:00:05]} Nc6 {[%emt 0:00:00]} 5. Bf4 {[%emt 0:00:01]} Bb4+ {[%emt 0:00:03]} 6. Nbd2 {[%emt 0:00:14]} Qe7 {[%emt 0:00:03]} 7. a3 {[%emt 0:00:02]} Bc5 {[%emt 0:00:01]} 8. e3 {[%emt 0:00:19]} Ngxe5 {[%emt 0:00:02]} 9. b4 {[%emt 0:00:09]} Nxf3+ {[%emt 0:00:10]} 10. Nxf3 {[%emt 0:00:10]} Bd6 {[%emt 0:00:27]} 11. Bxd6 {[%emt 0:00:01]} cxd6 {[%emt 0:00:08]} 12. Be2 {[%emt 0:00:10]} O-O {[%emt 0:00:03]} 13. O-O {[%emt 0:00:01]} b6 {[%emt 0:00:00]} 14. Nd4 {[%emt 0:00:24]} Ne5 {[%emt 0:00:05]} 15. Nf5 {[%emt 0:00:14]} Qe6 {[%emt 0:00:21]} 16. Qc2 {[%emt 0:00:38]} Bb7 {[%emt 0:00:03]} 17. Nd4 {[%emt 0:00:14]} Qh6 {[%emt 0:00:15]} 18. Nf5 {[%emt 0:00:09]} Qg5 {[%emt 0:00:10]} 19. Ng3 {[%emt 0:00:14]} Qh4 {[%emt 0:00:20]} 20. Rac1 {[%emt 0:00:09]} Rac8 {[%emt 0:00:13]} 21. Qd2 {[%emt 0:00:06]} Nxc4 {[%emt 0:00:27]} 22. Bxc4 {[%emt 0:00:01]} Rxc4 {[%emt 0:00:03]} 23. Qxd6 {[%emt 0:00:06]} Bc6 {[%emt 0:00:14]} 24. Nf5 {[%emt 0:00:10]} Qg5 {[%emt 0:00:07]} 25. Ne7+ {[%emt 0:00:04]} Kh8 {[%emt 0:00:02]} 26. Ng6+ {[%emt 0:00:02]} hxg6 {[%emt 0:00:06]} 27. Qxf8+ {[%emt 0:00:01]} Kh7 {[%emt 0:00:01]} 28. f3 {[%emt 0:00:03]} Rxc1 {[%emt 0:00:05]} 29. Rxc1 {[%emt 0:00:04]} Qxe3+ {[%emt 0:00:01]} 30. Kf1 {[%emt 0:00:00]} Bb5+ {[%emt 0:00:02]} 0-1

[Event "11th LCC Super Blitz 2019"]
[Site "London"]
[Date "2019.12.08"]
[Round "4.7"]
[White "Mohnblatt, Nicolas"]
[Black "Gudenas, Motiejus"]
[Result "0-1"]
[ECO "A43"]
[WhiteElo "1689"]
[BlackElo "1993"]
[Annotator "NA"]
[PlyCount "68"]
[EventDate "2019.12.08"]
[EventType "swiss"]
[EventCountry "ENG"]
[SourceTitle "playchess.com"]
[Source "ChessBase"]
[SourceQuality "1"]
[TimeControl "180+2"]

1. d4 {[%emt 0:00:00]} Nf6 {[%emt 0:00:00]} 2. Nc3 {[%emt 0:00:01]} c5 {[%emt 0:00:00]} 3. d5 {[%emt 0:00:02]} d6 {[%emt 0:00:14]} 4. e4 {[%emt 0:00:02]} g6 {[%emt 0:00:02]} 5. f3 {[%emt 0:00:04]} Bg7 {[%emt 0:00:02]} 6. Be3 {[%emt 0:00:01]} O-O {[%emt 0:00:03]} 7. Qd2 {[%emt 0:00:01]} Re8 {[%emt 0:00:08]} 8. Bh6 {[%emt 0:00:04]} Bh8 {[%emt 0:00:04]} 9. h4 {[%emt 0:00:01]} e6 {[%emt 0:00:26]} 10. O-O-O {[%emt 0:00:04]} exd5 {[%emt 0:00:03]} 11. Nxd5 {[%emt 0:00:05]} Nxd5 {[%emt 0:00:14]} 12. Qxd5 {[%emt 0:00:06]} Qb6 {[%emt 0:00:07]} 13. c3 {[%emt 0:00:12]} Qa5 {[%emt 0:00:33]} 14. Bc4 {[%emt 0:00:19]} Be6 {[%emt 0:00:12]} 15. Qd3 {[%emt 0:00:01]} Nd7 {[%emt 0:00:23]} 16. h5 {[%emt 0:00:20]} Ne5 {[%emt 0:00:01]} 17. Qb1 {[%emt 0:00:46]} Nxc4 {[%emt 0:00:02]} 18. hxg6 {[%emt 0:00:07]} fxg6 {[%emt 0:00:04]} 19. Ne2 {[%emt 0:00:30]} b5 {[%emt 0:00:07]} 20. Nf4 {[%emt 0:00:03]} b4 {[%emt 0:00:13]} 21. e5 {[%emt 0:00:16]} Nxe5 {[%emt 0:00:11]} 22. Rde1 {[%emt 0:00:08]} Bf5 {[%emt 0:00:09]} 23. Re4 {[%emt 0:00:24]} bxc3 {[%emt 0:00:06]} 24. b3 {[%emt 0:00:01]} Bxe4 {[%emt 0:00:12]} 25. Qxe4 {[%emt 0:00:02]} Bf6 {[%emt 0:00:05]} 26. Qd5+ {[%emt 0:00:06]} Kh8 {[%emt 0:00:01]} 27. Qxd6 {[%emt 0:00:05]} Nd7 {[%emt 0:00:05]} 28. Rd1 {[%emt 0:00:01]} Re2 {[%emt 0:00:02]} 29. Nd3 {[%emt 0:00:02]} Rd2 {[%emt 0:00:01]} 30. Rxd2 {[%emt 0:00:01]} cxd2+ {[%emt 0:00:01]} 31. Kd1 {[%emt 0:00:01]} Qd8 {[%emt 0:00:02]} 32. Nxc5 {[%emt 0:00:04]} Nxc5 {[%emt 0:00:01]} 33. Qxc5 {[%emt 0:00:02]} Rc8 {[%emt 0:00:01]} 34. Qb5 {[%emt 0:00:03]} Rc1+ {[%emt 0:00:02]} 0-1

[Event "11th LCC Super Blitz 2019"]
[Site "London"]
[Date "2019.12.08"]
[Round "4.8"]
[White "Zhao, Haolin"]
[Black "Iyengar, Ilya"]
[Result "0-1"]
[ECO "A03"]
[WhiteElo "1725"]
[BlackElo "1984"]
[Annotator "NA"]
[PlyCount "94"]
[EventDate "2019.12.08"]
[EventType "swiss"]
[EventCountry "ENG"]
[SourceTitle "playchess.com"]
[Source "ChessBase"]
[SourceQuality "1"]
[TimeControl "180+2"]

1. f4 {[%emt 0:00:41]} d5 {[%emt 0:00:05]} 2. b3 Nf6 {[%emt 0:00:04]} 3. Bb2 {[%emt 0:00:02]} g6 {[%emt 0:00:01]} 4. Nf3 {[%emt 0:00:02]} Bg7 5. e3 {[%emt 0:00:03]} c5 {[%emt 0:00:03]} 6. Bd3 {[%emt 0:00:03]} O-O {[%emt 0:00:04]} 7. O-O {[%emt 0:00:03]} Nc6 {[%emt 0:00:04]} 8. Qe1 {[%emt 0:00:03]} Qc7 {[%emt 0:00:13]} 9. h3 {[%emt 0:00:02]} b6 {[%emt 0:00:11]} 10. g4 {[%emt 0:00:02]} Bb7 {[%emt 0:00:02]} 11. Nc3 {[%emt 0:00:08]} Nb4 {[%emt 0:00:06]} 12. Ne2 {[%emt 0:00:09]} Nxd3 {[%emt 0:00:21]} 13. cxd3 {[%emt 0:00:01]} Ba6 {[%emt 0:00:02]} 14. Qh4 {[%emt 0:00:35]} Bxd3 15. Rae1 {[%emt 0:00:11]} Ne4 {[%emt 0:00:16]} 16. Bxg7 {[%emt 0:00:04]} Kxg7 {[%emt 0:00:01]} 17. Ng5 {[%emt 0:00:06]} Nxg5 {[%emt 0:00:41]} 18. Qxg5 {[%emt 0:00:03]} Rad8 {[%emt 0:00:09]} 19. Rf2 {[%emt 0:00:04]} f6 {[%emt 0:00:07]} 20. Qh4 {[%emt 0:00:02]} e5 {[%emt 0:00:05]} 21. f5 {[%emt 0:00:05]} g5 {[%emt 0:00:04]} 22. Qg3 {[%emt 0:00:03]} Bxe2 {[%emt 0:00:04]} 23. Rexe2 {[%emt 0:00:02]} c4 {[%emt 0:00:05]} 24. h4 {[%emt 0:00:01]} h6 {[%emt 0:00:02]} 25. hxg5 {[%emt 0:00:02]} hxg5 {[%emt 0:00:02]} 26. Rh2 {[%emt 0:00:02]} Rh8 {[%emt 0:00:07]} 27. Rh5 {[%emt 0:00:07]} Rxh5 {[%emt 0:00:04]} 28. gxh5 {[%emt 0:00:01]} Kh6 {[%emt 0:00:03]} 29. Qg4 {[%emt 0:00:02]} cxb3 {[%emt 0:00:11]} 30. axb3 {[%emt 0:00:01]} Qc5 {[%emt 0:00:07]} 31. Qa4 {[%emt 0:00:03]} a5 {[%emt 0:00:05]} 32. d4 {[%emt 0:00:12]} Qc8 {[%emt 0:00:12]} 33. dxe5 {[%emt 0:00:03]} Qxf5 {[%emt 0:00:04]} 34. exf6 {[%emt 0:00:04]} Qxf6 {[%emt 0:00:05]} 35. Qg4 {[%emt 0:00:04]} Rf8 {[%emt 0:00:02]} 36. Qg2 {[%emt 0:00:10]} Qf5 {[%emt 0:00:04]} 37. e4 {[%emt 0:00:04]} dxe4 {[%emt 0:00:02]} 38. Rxe4 {[%emt 0:00:02]} Kxh5 {[%emt 0:00:04]} 39. Qh2+ {[%emt 0:00:01]} Kg6 {[%emt 0:00:01]} 40. Qd6+ {[%emt 0:00:05]} Rf6 41. Qd3 {[%emt 0:00:06]} Kg7 {[%emt 0:00:05]} 42. Re7+ {[%emt 0:00:06]} Kg6 {[%emt 0:00:04]} 43. Re4 {[%emt 0:00:03]} Kf7 {[%emt 0:00:04]} 44. Qc4+ {[%emt 0:00:03]} Kf8 {[%emt 0:00:02]} 45. Qd3 {[%emt 0:00:04]} Qf2+ {[%emt 0:00:02]} 46. Kh1 {[%emt 0:00:04]} Rh6+ {[%emt 0:00:01]} 47. Qh3 {[%emt 0:00:01]} Rxh3# {[%emt 0:00:02]} 0-1

[Event "11th LCC Super Blitz 2019"]
[Site "London"]
[Date "2019.12.08"]
[Round "4.8"]
[White "Ignatovic, Ernest"]
[Black "Janula, Mariusz"]
[Result "1-0"]
[ECO "A01"]
[WhiteElo "1703"]
[BlackElo "1767"]
[Annotator "NA"]
[PlyCount "49"]
[EventDate "2019.12.08"]
[EventType "swiss"]
[EventCountry "ENG"]
[SourceTitle "playchess.com"]
[Source "ChessBase"]
[SourceQuality "1"]
[TimeControl "180+2"]

1. b3 {[%emt 0:00:00]} e5 {[%emt 0:00:00]} 2. Bb2 {[%emt 0:00:00]} Nc6 {[%emt 0:00:01]} 3. e3 {[%emt 0:00:00]} d5 {[%emt 0:00:03]} 4. Bb5 {[%emt 0:00:01]} Bd6 {[%emt 0:00:02]} 5. Nf3 {[%emt 0:00:03]} Qe7 {[%emt 0:00:08]} 6. d4 {[%emt 0:00:01]} e4 {[%emt 0:00:01]} 7. Ne5 {[%emt 0:00:01]} Bd7 {[%emt 0:00:09]} 8. Nxd7 {[%emt 0:00:02]} Qxd7 {[%emt 0:00:04]} 9. Be2 {[%emt 0:00:01]} f5 {[%emt 0:00:10]} 10. c4 {[%emt 0:00:01]} Nf6 {[%emt 0:00:07]} 11. Qc1 {[%emt 0:00:06]} O-O {[%emt 0:00:09]} 12. Ba3 {[%emt 0:00:02]} a5 {[%emt 0:00:19]} 13. Bxd6 {[%emt 0:00:05]} cxd6 {[%emt 0:00:04]} 14. cxd5 {[%emt 0:00:05]} Nxd5 {[%emt 0:00:01]} 15. Bc4 {[%emt 0:00:06]} Nce7 {[%emt 0:00:05]} 16. Nc3 {[%emt 0:00:03]} Qe6 {[%emt 0:00:17]} 17. O-O {[%emt 0:00:08]} Kh8 {[%emt 0:00:01]} 18. Qa3 {[%emt 0:00:02]} Rac8 {[%emt 0:00:10]} 19. Qxa5 {[%emt 0:00:10]} Rxc4 {[%emt 0:00:06]} 20. bxc4 {[%emt 0:00:12]} b6 {[%emt 0:00:11]} 21. cxd5 {[%emt 0:00:12]} Qg6 {[%emt 0:00:11]} 22. Qxb6 {[%emt 0:00:06]} f4 {[%emt 0:00:01]} 23. Nxe4 {[%emt 0:00:24]} Qxe4 {[%emt 0:00:03]} 24. Qxd6 {[%emt 0:00:05]} Nf5 {[%emt 0:00:15]} 25. Qxf8# {[%emt 0:00:05]} 1-0

[Event "11th LCC Super Blitz 2019"]
[Site "London"]
[Date "2019.12.08"]
[Round "4.8"]
[White "Sandhu, Manvith"]
[Black "Young, Daniel J"]
[Result "0-1"]
[ECO "B53"]
[WhiteElo "1673"]
[BlackElo "1947"]
[Annotator "NA"]
[PlyCount "20"]
[EventDate "2019.12.08"]
[EventType "swiss"]
[EventCountry "ENG"]
[SourceTitle "playchess.com"]
[Source "ChessBase"]
[SourceQuality "1"]
[TimeControl "180+2"]

1. e4 {[%emt 0:00:00]} c5 {[%emt 0:00:01]} 2. Nf3 d6 {[%emt 0:00:00]} 3. d4 {[%emt 0:00:02]} cxd4 {[%emt 0:00:00]} 4. Qxd4 {[%emt 0:00:00]} Nc6 {[%emt 0:00:00]} 5. Bb5 {[%emt 0:00:00]} Bd7 {[%emt 0:00:01]} 6. Bxc6 {[%emt 0:00:01]} Bxc6 {[%emt 0:00:00]} 7. Nc3 {[%emt 0:00:01]} Nf6 {[%emt 0:00:04]} 8. Bg5 {[%emt 0:00:05]} e6 {[%emt 0:00:06]} 9. O-O-O Be7 10. Kb1 O-O {[%emt 0:00:00]} 0-1

[Event "11th LCC Super Blitz 2019"]
[Site "London"]
[Date "2019.12.08"]
[Round "4.9"]
[White "Arapalea, Daniel-Ionel"]
[Black "Dhemrait, Jagdeep"]
[Result "1-0"]
[ECO "B22"]
[WhiteElo "1840"]
[BlackElo "1834"]
[Annotator "NA"]
[PlyCount "77"]
[EventDate "2019.12.08"]
[EventType "swiss"]
[EventCountry "ENG"]
[SourceTitle "playchess.com"]
[Source "ChessBase"]
[SourceQuality "1"]
[TimeControl "180+2"]

1. e4 {[%emt 0:00:00]} c5 {[%emt 0:00:00]} 2. Nf3 {[%emt 0:00:01]} Nc6 {[%emt 0:00:00]} 3. c3 {[%emt 0:00:02]} g6 {[%emt 0:00:02]} 4. Qc2 {[%emt 0:00:01]} Bg7 {[%emt 0:00:04]} 5. Be2 {[%emt 0:00:01]} e6 {[%emt 0:00:04]} 6. O-O {[%emt 0:00:02]} Nge7 {[%emt 0:00:01]} 7. a3 {[%emt 0:00:03]} a5 {[%emt 0:00:03]} 8. Rd1 {[%emt 0:00:02]} d5 {[%emt 0:00:01]} 9. d3 {[%emt 0:00:02]} O-O {[%emt 0:00:03]} 10. Bg5 {[%emt 0:00:02]} Qc7 {[%emt 0:00:09]} 11. Nbd2 {[%emt 0:00:09]} b6 {[%emt 0:00:04]} 12. Rac1 {[%emt 0:00:07]} Bb7 {[%emt 0:00:09]} 13. Re1 {[%emt 0:00:07]} Rac8 {[%emt 0:00:19]} 14. Bh4 {[%emt 0:00:04]} Rfe8 {[%emt 0:00:09]} 15. Bg3 {[%emt 0:00:01]} Qd7 {[%emt 0:00:07]} 16. Rcd1 {[%emt 0:00:04]} d4 {[%emt 0:00:08]} 17. c4 {[%emt 0:00:07]} f6 {[%emt 0:00:24]} 18. Qb3 {[%emt 0:00:01]} Qd8 {[%emt 0:00:07]} 19. h3 {[%emt 0:00:05]} Na7 {[%emt 0:00:12]} 20. Nh2 {[%emt 0:00:05]} Bc6 {[%emt 0:00:24]} 21. Bf3 {[%emt 0:00:06]} e5 {[%emt 0:00:04]} 22. Be2 {[%emt 0:00:10]} g5 {[%emt 0:00:02]} 23. h4 {[%emt 0:00:07]} h6 {[%emt 0:00:07]} 24. f3 {[%emt 0:00:05]} Ng6 {[%emt 0:00:08]} 25. hxg5 {[%emt 0:00:05]} hxg5 {[%emt 0:00:02]} 26. Kf2 {[%emt 0:00:06]} Kf7 {[%emt 0:00:02]} 27. Ng4 {[%emt 0:00:03]} Rh8 {[%emt 0:00:05]} 28. Rh1 {[%emt 0:00:01]} Qd7 {[%emt 0:00:08]} 29. Qxb6 {[%emt 0:00:05]} Ra8 {[%emt 0:00:06]} 30. Rxh8 {[%emt 0:00:11]} Rxh8 {[%emt 0:00:08]} 31. Qxc5 {[%emt 0:00:05]} a4 {[%emt 0:00:03]} 32. b4 {[%emt 0:00:17]} Rb8 {[%emt 0:00:12]} 33. b5 {[%emt 0:00:05]} Ba8 {[%emt 0:00:12]} 34. Qb4 {[%emt 0:00:02]} Bf8 {[%emt 0:00:04]} 35. Qxa4 {[%emt 0:00:02]} Ne7 {[%emt 0:00:08]} 36. Rh1 {[%emt 0:00:04]} Nec8 {[%emt 0:00:06]} 37. Rh7+ {[%emt 0:00:14]} Bg7 {[%emt 0:00:01]} 38. Qd1 {[%emt 0:00:02]} Kg8 {[%emt 0:00:10]} 39. Nxf6+ {[%emt 0:00:05]} 1-0

[Event "11th LCC Super Blitz 2019"]
[Site "London"]
[Date "2019.12.08"]
[Round "4.9"]
[White "Davis, Holden"]
[Black "Nunn, Petra"]
[Result "1-0"]
[ECO "B21"]
[WhiteElo "1769"]
[BlackElo "1908"]
[Annotator "NA"]
[PlyCount "53"]
[EventDate "2019.12.08"]
[EventType "swiss"]
[EventCountry "ENG"]
[SourceTitle "playchess.com"]
[Source "ChessBase"]
[SourceQuality "1"]
[TimeControl "180+2"]

1. e4 {[%emt 0:00:00]} c5 {[%emt 0:00:00]} 2. d4 {[%emt 0:00:01]} cxd4 {[%emt 0:00:02]} 3. c3 {[%emt 0:00:01]} dxc3 {[%emt 0:00:01]} 4. Nxc3 {[%emt 0:00:02]} Nc6 {[%emt 0:00:01]} 5. Nf3 {[%emt 0:00:01]} e6 {[%emt 0:00:05]} 6. Bc4 {[%emt 0:00:01]} d6 {[%emt 0:00:03]} 7. O-O {[%emt 0:00:02]} Be7 {[%emt 0:00:02]} 8. Qe2 {[%emt 0:00:01]} a6 {[%emt 0:00:03]} 9. Rd1 {[%emt 0:00:01]} Qc7 {[%emt 0:00:05]} 10. Bf4 {[%emt 0:00:03]} e5 {[%emt 0:00:02]} 11. Be3 {[%emt 0:00:01]} Nf6 {[%emt 0:00:15]} 12. Rac1 {[%emt 0:00:06]} Qb8 {[%emt 0:01:00]} 13. Bb6 {[%emt 0:00:11]} O-O {[%emt 0:00:11]} 14. Nd5 {[%emt 0:00:03]} Nxd5 {[%emt 0:00:03]} 15. Bxd5 {[%emt 0:00:06]} Bd7 {[%emt 0:00:04]} 16. a4 {[%emt 0:00:10]} a5 {[%emt 0:00:12]} 17. Bc4 {[%emt 0:00:19]} Rc8 {[%emt 0:00:03]} 18. Qe3 {[%emt 0:00:19]} Bd8 {[%emt 0:00:09]} 19. Bxd8 {[%emt 0:00:12]} Rxd8 {[%emt 0:00:03]} 20. Ng5 {[%emt 0:00:03]} Rf8 {[%emt 0:00:17]} 21. Qb3 {[%emt 0:00:29]} Qe8 {[%emt 0:00:28]} 22. Rxd6 {[%emt 0:00:14]} Qe7 {[%emt 0:00:01]} 23. Nxf7 {[%emt 0:00:07]} Rxf7 {[%emt 0:00:14]} 24. Bxf7+ {[%emt 0:00:01]} Kf8 {[%emt 0:00:09]} 25. Qxb7 {[%emt 0:00:18]} Rd8 {[%emt 0:00:11]} 26. Rcd1 {[%emt 0:00:27]} Nd4 {[%emt 0:00:05]} 27. Qd5 {[%emt 0:00:31]} 1-0

[Event "11th LCC Super Blitz 2019"]
[Site "London"]
[Date "2019.12.08"]
[Round "4.9"]
[White "Ball, Charlie J"]
[Black "Yeo, Klaus Lucas"]
[Result "1-0"]
[ECO "D00"]
[WhiteElo "1249"]
[BlackElo "1176"]
[Annotator "NA"]
[PlyCount "87"]
[EventDate "2019.12.08"]
[EventType "swiss"]
[EventCountry "ENG"]
[SourceTitle "playchess.com"]
[Source "ChessBase"]
[SourceQuality "1"]
[TimeControl "180+2"]

1. d4 {[%emt 0:04:12]} d5 2. Bf4 Bf5 3. e3 {[%emt 0:00:02]} c6 4. Bd3 Bxd3 {[%emt 0:00:03]} 5. cxd3 e6 6. Nf3 {[%emt 0:00:03]} Bd6 {[%emt 0:00:03]} 7. Bg3 Nd7 {[%emt 0:00:10]} 8. Bxd6 {[%emt 0:00:02]} Nb6 {[%emt 0:00:06]} 9. Bc5 {[%emt 0:00:01]} Ne7 {[%emt 0:00:03]} 10. Bxb6 {[%emt 0:00:01]} Qxb6 {[%emt 0:00:02]} 11. Qc2 {[%emt 0:00:06]} Rc8 {[%emt 0:00:07]} 12. Nbd2 c5 {[%emt 0:00:02]} 13. dxc5 {[%emt 0:00:09]} Rxc5 14. Qb3 {[%emt 0:00:03]} Rb5 {[%emt 0:00:02]} 15. Qa4 {[%emt 0:00:05]} Nc6 {[%emt 0:00:04]} 16. Nb3 {[%emt 0:00:16]} O-O {[%emt 0:00:10]} 17. O-O {[%emt 0:00:03]} Rb4 {[%emt 0:00:09]} 18. Qa3 {[%emt 0:00:10]} a6 {[%emt 0:00:02]} 19. Nbd4 {[%emt 0:00:05]} Nxd4 {[%emt 0:00:22]} 20. Nxd4 {[%emt 0:00:03]} Rxb2 {[%emt 0:00:06]} 21. h3 {[%emt 0:00:12]} h6 {[%emt 0:00:22]} 22. Nb3 {[%emt 0:00:01]} Rc2 {[%emt 0:00:11]} 23. Qa5 {[%emt 0:00:02]} Qxa5 {[%emt 0:00:07]} 24. Nxa5 {[%emt 0:00:02]} b6 {[%emt 0:00:01]} 25. Nb3 {[%emt 0:00:03]} Rc3 {[%emt 0:00:02]} 26. Rfd1 {[%emt 0:00:04]} Rfc8 {[%emt 0:00:05]} 27. Rac1 {[%emt 0:00:01]} Kh7 {[%emt 0:00:10]} 28. Rxc3 {[%emt 0:00:11]} Rxc3 {[%emt 0:00:01]} 29. Rc1 {[%emt 0:00:11]} Rxd3 {[%emt 0:00:03]} 30. Rc6 {[%emt 0:00:01]} a5 {[%emt 0:00:21]} 31. Rxb6 {[%emt 0:00:06]} a4 {[%emt 0:00:02]} 32. Nc5 Rd2 {[%emt 0:00:16]} 33. Nxa4 {[%emt 0:00:08]} Rxa2 {[%emt 0:00:01]} 34. Nc3 Ra7 {[%emt 0:00:03]} 35. Nb5 {[%emt 0:00:03]} Rd7 {[%emt 0:00:03]} 36. Rd6 {[%emt 0:00:02]} Rb7 {[%emt 0:00:02]} 37. Nd4 {[%emt 0:00:02]} Kg6 {[%emt 0:00:04]} 38. Kh2 {[%emt 0:00:02]} Kf6 {[%emt 0:00:04]} 39. Nc6 {[%emt 0:00:11]} Rb6 {[%emt 0:00:04]} 40. f3 {[%emt 0:00:09]} g5 {[%emt 0:00:05]} 41. e4 {[%emt 0:00:02]} dxe4 {[%emt 0:00:05]} 42. fxe4 {[%emt 0:00:03]} Kg7 {[%emt 0:00:01]} 43. e5 {[%emt 0:00:03]} Kg6 {[%emt 0:00:03]} 44. Ne7+ {[%emt 0:00:01]} 1-0

[Event "11th LCC Super Blitz 2019"]
[Site "London"]
[Date "2019.12.08"]
[Round "4.10"]
[White "Petrov, Vladimir Sergeev"]
[Black "Muhunthan, Charukgan"]
[Result "1-0"]
[ECO "B76"]
[WhiteElo "2355"]
[BlackElo "1401"]
[Annotator "NA"]
[PlyCount "33"]
[EventDate "2019.12.08"]
[EventType "swiss"]
[EventCountry "ENG"]
[SourceTitle "playchess.com"]
[Source "ChessBase"]
[SourceQuality "1"]
[TimeControl "180+2"]

1. e4 {[%emt 0:00:00]} c5 {[%emt 0:00:00]} 2. Nf3 {[%emt 0:00:03]} d6 {[%emt 0:00:01]} 3. d4 {[%emt 0:00:01]} cxd4 4. Nxd4 {[%emt 0:00:01]} Nf6 {[%emt 0:00:02]} 5. Nc3 {[%emt 0:00:01]} g6 {[%emt 0:00:01]} 6. Be3 {[%emt 0:00:03]} Bg7 {[%emt 0:00:01]} 7. f3 {[%emt 0:00:01]} O-O {[%emt 0:00:02]} 8. Qd2 {[%emt 0:00:01]} Bd7 {[%emt 0:00:01]} 9. h4 {[%emt 0:00:08]} h5 {[%emt 0:00:01]} 10. g4 {[%emt 0:00:11]} hxg4 {[%emt 0:00:01]} 11. h5 {[%emt 0:00:00]} gxh5 {[%emt 0:00:05]} 12. Bh6 {[%emt 0:00:07]} Qa5 {[%emt 0:00:14]} 13. O-O-O {[%emt 0:00:12]} Nc6 {[%emt 0:00:03]} 14. Bxg7 Kxg7 {[%emt 0:00:01]} 15. Bb5 {[%emt 0:00:37]} Rh8 {[%emt 0:00:22]} 16. fxg4 {[%emt 0:00:21]} hxg4 {[%emt 0:00:08]} 17. Qg5+ {[%emt 0:00:04]} 1-0